[Event "IMSA Blitz Women 2019"]
[Site "Hengshui"]
[Date "2019.05.18"]
[Round "11.2"]
[White "Bodnaruk, Anastasia"]
[Black "Tan, Zhongyi"]
[Result "1-0"]
[ECO "C65"]
[WhiteElo "2431"]
[BlackElo "2513"]
[Annotator "RC"]
[PlyCount "110"]
[EventDate "2019.05.17"]
[EventType "blitz"]
[EventCountry "CHN"]
[SourceTitle "playchess.com"]
[Source "ChessBase"]
[SourceQuality "1"]
[TimeControl "180+2"]

1. e4 {[%emt 0:00:00]} e5 {[%emt 0:00:00]} 2. Nf3 {[%emt 0:00:00]} Nc6 {[%emt 0:00:00]} 3. Bb5 {[%emt 0:00:04]} Nf6 {[%emt 0:00:01]} 4. d3 {[%emt 0:00:03]} Bc5 {[%emt 0:00:01]} 5. Nbd2 {[%emt 0:00:04]} O-O {[%emt 0:00:04]} 6. O-O {[%emt 0:00:03]} d6 {[%emt 0:00:09]} 7. c3 {[%emt 0:00:07]} a6 {[%emt 0:00:02]} 8. Bxc6 {[%emt 0:00:07]} bxc6 {[%emt 0:00:01]} 9. h3 {[%emt 0:00:03]} Bb6 {[%emt 0:00:30]} 10. d4 {[%emt 0:00:04]} exd4 {[%emt 0:00:02]} 11. cxd4 {[%emt 0:00:01]} Re8 {[%emt 0:00:11]} 12. Re1 {[%emt 0:00:01]} c5 {[%emt 0:00:05]} 13. d5 {[%emt 0:00:11]} Ba5 {[%emt 0:00:01]} 14. Re2 {[%emt 0:00:13]} Bxd2 {[%emt 0:00:06]} 15. Nxd2 {[%emt 0:00:01]} Bd7 {[%emt 0:00:16]} 16. b3 {[%emt 0:00:19]} c6 {[%emt 0:00:01]} 17. dxc6 {[%emt 0:00:08]} Bxc6 {[%emt 0:00:01]} 18. f3 {[%emt 0:00:01]} d5 {[%emt 0:00:02]} 19. e5 {[%emt 0:00:05]} Nh5 {[%emt 0:00:04]} 20. Nf1 {[%emt 0:00:13]} Bb5 {[%emt 0:00:06]} 21. Re1 {[%emt 0:00:12]} d4 {[%emt 0:00:11]} 22. f4 {[%emt 0:00:04]} Qh4 {[%emt 0:00:09]} 23. Bd2 {[%emt 0:00:28]} Ng3 {[%emt 0:01:21]} 24. Nxg3 {[%emt 0:00:20]} Qxg3 {[%emt 0:00:01]} 25. Qg4 {[%emt 0:00:04]} Qxg4 {[%emt 0:00:06]} 26. hxg4 {[%emt 0:00:01]} g6 {[%emt 0:00:04]} 27. Rac1 {[%emt 0:00:12]} Rac8 {[%emt 0:00:01]} 28. Kf2 {[%emt 0:00:01]} Bd3 {[%emt 0:00:01]} 29. Ba5 {[%emt 0:00:06]} Re6 {[%emt 0:00:04]} 30. Red1 {[%emt 0:00:03]} Bb5 {[%emt 0:00:13]} 31. Rxd4 {[%emt 0:00:02]} f6 {[%emt 0:00:01]} 32. Rd5 {[%emt 0:00:06]} fxe5 {[%emt 0:00:02]} 33. fxe5 {[%emt 0:00:01]} Rf8+ {[%emt 0:00:01]} 34. Kg3 {[%emt 0:00:03]} c4 {[%emt 0:00:03]} 35. bxc4 {[%emt 0:00:05]} Bc6 {[%emt 0:00:01]} 36. Rc5 {[%emt 0:00:05]} g5 {[%emt 0:00:01]} 37. Rd1 {[%emt 0:00:08]} Ba4 {[%emt 0:00:05]} 38. Rd6 {[%emt 0:00:01]} Rfe8 {[%emt 0:00:01]} 39. Rxe6 {[%emt 0:00:03]} Rxe6 {[%emt 0:00:01]} 40. Bc7 {[%emt 0:00:05]} Kf7 {[%emt 0:00:03]} 41. Bd6 {[%emt 0:00:01]} Re8 {[%emt 0:00:02]} 42. Rc7+ {[%emt 0:00:01]} Kg6 {[%emt 0:00:01]} 43. c5 {[%emt 0:00:04]} Bb5 {[%emt 0:00:04]} 44. Rb7 {[%emt 0:00:04]} h5 {[%emt 0:00:02]} 45. gxh5+ {[%emt 0:00:03]} Kxh5 {[%emt 0:00:01]} 46. Rb6 {[%emt 0:00:04]} Rc8 {[%emt 0:00:04]} 47. e6 {[%emt 0:00:02]} Kg6 {[%emt 0:00:00]} 48. e7 {[%emt 0:00:01]} Kf7 {[%emt 0:00:01]} 49. Kg4 {[%emt 0:00:04]} Rg8 {[%emt 0:00:02]} 50. Kf5 {[%emt 0:00:06]} Bd7+ {[%emt 0:00:02]} 51. Ke5 {[%emt 0:00:01]} Rg6 {[%emt 0:00:01]} 52. c6 {[%emt 0:00:03]} Bg4 {[%emt 0:00:04]} 53. Rb8 {[%emt 0:00:07]} Re6+ {[%emt 0:00:01]} 54. Kd5 {[%emt 0:00:00]} Re2 {[%emt 0:00:07]} 55. Rf8+ {[%emt 0:00:03]} Kg7 {[%emt 0:00:02] Ke4} 1-0